bitfinex-derivatives/quotes_BTCF0:USTF0_20250903
["timestamp","ask_amount","ask_price","bid_price","bid_amount"]
[1756895859853,0.4629881,111500.0,111490.0,0.44163]
[1756895860055,0.4629881,111500.0,111490.0,0.75072316]
[1756895860650,0.8237881,111500.0,111490.0,0.75072316]
[1756895861054,0.4629881,111500.0,111490.0,0.75072316]
[1756895861254,0.4629881,111500.0,111490.0,0.76072316]
[1756895861959,0.4629881,111500.0,111490.0,0.42072316]
[1756895862757,0.4629881,111500.0,111490.0,0.79072316]
[1756895863949,0.4629881,111500.0,111490.0,0.42072316]
[1756895865458,1.2889481,111500.0,111490.0,0.80072316]
[1756895866154,1.2889481,111500.0,111490.0,0.79072316]
[1756895866357,1.2889481,111500.0,111490.0,0.42072316]
[1756895866550,1.2889481,111500.0,111490.0,0.08163]
[1756895866850,1.2889481,111500.0,111490.0,0.76072316]
[1756895867359,1.2889481,111500.0,111490.0,0.42072316]
[1756895868460,0.12389494,111500.0,111490.0,0.75900678]
[1756895868652,0.85178494,111500.0,111490.0,0.75900678]
[1756895868854,0.87651494,111500.0,111490.0,0.75900678]
[1756895869056,0.90075494,111500.0,111490.0,0.75900678]
[1756895869361,0.07479165,111500.0,111490.0,0.75900678]
[1756895869656,0.07479165,111500.0,111490.0,1.11980678]
[1756895870158,0.07379165,111500.0,111490.0,1.11980678]
[1756895871153,0.07279165,111500.0,111490.0,1.11980678]
[1756895872056,0.07239165,111500.0,111490.0,1.11980678]
[1756895872257,0.07279165,111500.0,111490.0,1.11980678]
[1756895872868,0.02382165,111500.0,111490.0,1.94572678]
[1756895873060,0.02382165,111500.0,111490.0,2.28481994]
[1756895873465,0.02382165,111500.0,111490.0,1.94572678]
[1756895874565,0.02382165,111500.0,111490.0,2.28481994]
[1756895875258,0.02382165,111500.0,111490.0,2.28929994]
[1756895875459,0.86188,111510.0,111490.0,2.28929994]
[1756895875764,0.93427253,111510.0,111500.0,0.77508632]
[1756895875962,0.93417253,111510.0,111500.0,1.08508632]
[1756895876163,0.93457253,111510.0,111500.0,0.4069]
[1756895876368,1.27366569,111510.0,111500.0,0.42126316]
[1756895876569,1.27366569,111510.0,111500.0,0.08217]
[1756895876866,1.27366569,111510.0,111500.0,0.42126316]
[1756895877372,1.27366569,111510.0,111500.0,0.43599316]
[1756895877963,1.27466569,111510.0,111500.0,0.43599316]
[1756895878164,1.27566569,111510.0,111500.0,0.43599316]
[1756895878368,1.27566569,111510.0,111500.0,0.44519603]
[1756895880172,0.93657253,111510.0,111500.0,0.44519603]
[1756895880466,1.27566569,111510.0,111500.0,0.44519603]
[1756895880669,1.27566569,111510.0,111500.0,0.43046603]
[1756895881171,1.27566293,111510.0,111500.0,0.43046603]
[1756895881562,0.93652977,111510.0,111500.0,0.89801598]
[1756895881964,0.93652977,111510.0,111500.0,0.57801598]
[1756895882964,0.93652977,111510.0,111500.0,0.55801598]
[1756895884365,0.93652977,111510.0,111500.0,0.54328598]
[1756895884560,0.93652977,111510.0,111500.0,0.09137287]
[1756895886962,0.93652977,111510.0,111500.0,0.08217]
[1756895887169,0.11064977,111510.0,111500.0,0.02281]
[1756895887374,1.38840288,111510.0,111500.0,0.04688]
[1756895888168,0.09873,111500.0,111490.0,0.33354362]
[1756895888366,0.57406288,111500.0,111490.0,0.28656362]
[1756895889476,0.93486288,111500.0,111490.0,0.28656362]
[1756895890171,0.93486288,111500.0,111490.0,0.02276362]
[1756895890570,0.93486288,111500.0,111490.0,0.04557362]
[1756895890767,0.48294977,111500.0,111490.0,0.04557362]
[1756895890972,0.93486288,111500.0,111490.0,0.04557362]
[1756895891677,0.48294977,111500.0,111490.0,0.04557362]
[1756895892279,0.48394977,111500.0,111490.0,0.04557362]
[1756895892981,0.48494977,111500.0,111490.0,0.04557362]
[1756895895678,0.48494977,111500.0,111490.0,0.06879362]
[1756895895881,0.48494977,111500.0,111490.0,0.14879362]
[1756895896082,0.48494977,111500.0,111490.0,0.06879362]
[1756895896483,0.48494977,111500.0,111490.0,0.13879362]
[1756895896786,0.48494838,111500.0,111490.0,0.13879362]
[1756895898077,0.48494838,111500.0,111490.0,0.06879362]
[1756895898278,0.48494838,111500.0,111490.0,0.05051]
[1756895898477,0.48494838,111500.0,111490.0,0.02755]
[1756895899184,0.48494838,111500.0,111490.0,0.05077]
[1756895904184,0.48494838,111500.0,111490.0,0.02755]
[1756895905088,0.93686149,111500.0,111490.0,0.00448]
[1756895907589,0.94587268,111500.0,111490.0,0.00448]
[1756895908889,0.48494838,111500.0,111490.0,0.05077]
[1756895909077,0.93686149,111500.0,111490.0,0.02755]
[1756895909281,0.93686149,111500.0,111490.0,0.05077]
[1756895909787,1.76254149,111500.0,111490.0,0.05077]
[1756895910292,1.76250149,111500.0,111490.0,0.05077]
[1756895911090,1.31058838,111500.0,111490.0,0.08665]
[1756895912683,1.31058838,111500.0,111490.0,0.05077]
[1756895913189,0.48494838,111500.0,111490.0,0.08665]
[1756895913389,1.31058838,111500.0,111490.0,0.08665]
[1756895914795,0.48494838,111500.0,111490.0,0.08665]
[1756895914996,1.31058838,111500.0,111490.0,0.08665]
[1756895915201,0.48494838,111500.0,111490.0,0.08665]
[1756895915501,1.31054838,111500.0,111490.0,0.08665]
[1756895917799,0.48494838,111500.0,111490.0,0.08665]
[1756895918003,0.94974838,111500.0,111490.0,0.76745]
[1756895918300,0.94974838,111500.0,111490.0,1.21936311]
[1756895918601,0.94974838,111500.0,111490.0,0.55856311]
[1756895918898,0.95014838,111500.0,111490.0,0.55856311]
[1756895919394,0.95014838,111500.0,111490.0,0.85856311]
[1756895919597,0.95014838,111500.0,111490.0,1.25936311]
[1756895919898,0.95014838,111500.0,111490.0,0.53856311]
[1756895920094,0.95014838,111500.0,111490.0,0.77745]
[1756895920299,0.95014838,111500.0,111490.0,0.44745]
[1756895920501,0.95014838,111500.0,111490.0,0.80745]
[1756895922302,0.95014838,111500.0,111490.0,0.44745]
[1756895922798,0.95006838,111500.0,111490.0,0.38835]
[1756895923004,1.40198149,111500.0,111490.0,0.00448]
[1756895923195,0.95006838,111500.0,111490.0,0.00448]
[1756895923498,0.95006838,111500.0,111490.0,0.08509]
[1756895923895,0.12454838,111500.0,111490.0,0.08509]
[1756895924196,0.95006838,111500.0,111490.0,0.08509]
[1756895924396,0.95006838,111500.0,111490.0,0.05028]
[1756895924703,1.40198149,111500.0,111490.0,0.05028]
[1756895925100,0.12454838,111500.0,111490.0,0.42509]
[1756895925301,0.95006838,111500.0,111490.0,0.08509]
[1756895925613,0.95006838,111500.0,111490.0,0.44509]
[1756895925815,0.12454838,111500.0,111490.0,0.43509]
[1756895926114,0.95002838,111500.0,111490.0,0.08509]
[1756895927012,0.95002838,111500.0,111490.0,0.44509]
[1756895927212,0.95002838,111500.0,111490.0,0.08509]
[1756895927413,0.12454838,111500.0,111490.0,0.41509]
[1756895927613,0.95002838,111500.0,111490.0,0.86700311]
[1756895928219,0.12454838,111500.0,111490.0,0.86700311]
[1756895928517,0.95002838,111500.0,111490.0,0.86700311]
[1756895930514,0.95002838,111500.0,111490.0,0.41509]
[1756895930723,0.95002838,111500.0,111490.0,0.86700311]
[1756895932214,0.95002838,111500.0,111490.0,1.22780311]
[1756895932814,0.95002838,111500.0,111490.0,1.47780311]
[1756895932815,0.11064838,111500.0,111490.0,1.47780311]
[1756895933012,0.08683,111500.0,111490.0,1.47780311]
[1756895933218,0.08723,111500.0,111490.0,1.47780311]
[1756895933614,0.05097,111500.0,111490.0,1.47780311]
[1756895933911,0.02713,111500.0,111490.0,1.47780311]
[1756895934111,0.0024,111500.0,111490.0,1.47780311]
[1756895934321,0.0014,111500.0,111490.0,1.47780311]
[1756895934519,0.03419,111510.0,111500.0,0.01453]
[1756895934821,0.08327,111510.0,111500.0,1.28785311]
[1756895936113,0.08327,111510.0,111500.0,1.29233311]
[1756895936421,0.10674451,111510.0,111500.0,1.29233311]
[1756895937226,0.07265451,111510.0,111500.0,1.54233311]
[1756895937418,0.04917451,111510.0,111500.0,2.36765311]
[1756895937720,0.02387451,111510.0,111500.0,2.36765311]
[1756895938022,0.02386949,111510.0,111500.0,2.36765311]
[1756895938621,0.02386949,111510.0,111500.0,1.91574]
[1756895938822,0.02386949,111510.0,111500.0,2.36765311]
[1756895939224,0.02386949,111510.0,111500.0,2.11765311]
[1756895940617,0.02386949,111510.0,111500.0,1.29233311]
[1756895942120,0.02386949,111510.0,111500.0,2.11753311]
[1756895943425,0.0004,111510.0,111500.0,2.34329498]
[1756895944924,0.0004,111510.0,111500.0,2.93213247]
[1756895945119,0.04848,111520.0,111510.0,0.08061]
[1756895945319,0.0726267,111520.0,111510.0,1.43908498]
[1756895945626,0.0718267,111520.0,111510.0,2.26420498]
[1756895945818,0.0722267,111520.0,111510.0,2.26420498]
[1756895946227,0.04878,111520.0,111510.0,2.26420498]
[1756895946420,0.0004,111520.0,111510.0,2.26420498]
[1756895946927,0.0014,111520.0,111510.0,2.33625584]
[1756895947318,0.0014,111520.0,111510.0,2.26420498]
[1756895947522,0.03509,111520.0,111510.0,1.10024749]
[1756895947721,0.03549,111520.0,111510.0,1.10024749]
[1756895948125,0.03749,111520.0,111510.0,1.10024749]
[1756895948721,0.03749,111520.0,111510.0,0.76141]
[1756895948924,0.08587,111520.0,111510.0,1.10024749]
[1756895951830,0.08587,111520.0,111510.0,1.17056253]
[1756895952721,0.08587,111520.0,111510.0,0.83172504]
[1756895952921,0.08587,111520.0,111510.0,1.17056253]
[1756895953830,0.08587,111520.0,111510.0,0.83172504]
[1756895954029,0.08587,111520.0,111510.0,1.17056253]
[1756895955531,1.49962749,111520.0,111510.0,0.08061]
[1756895955827,1.49962749,111520.0,111510.0,0.41944749]
[1756895956422,1.83846498,111520.0,111510.0,0.02311]
[1756895956627,1.83846498,111520.0,111510.0,0.04605]
[1756895960629,1.83846498,111520.0,111510.0,0.05053]
[1756895961030,1.16079,111520.0,111510.0,0.05053]
[1756895961227,1.83846498,111520.0,111510.0,0.05053]
[1756895961429,1.83846498,111520.0,111510.0,0.02759]
[1756895961733,1.83846498,111520.0,111510.0,0.00448]
[1756895962025,1.83846498,111520.0,111510.0,0.02765]
[1756895962233,1.52310744,111520.0,111510.0,0.02765]
[1756895963929,2.22266493,111520.0,111510.0,0.00448]
[1756895966134,2.22266493,111520.0,111510.0,0.02765]
[1756895966935,2.22266493,111520.0,111510.0,0.00448]
[1756895970334,1.54498995,111520.0,111510.0,0.00448]
[1756895970542,2.22254493,111520.0,111510.0,0.00448]
[1756895973842,1.39782493,111520.0,111510.0,0.02765]
[1756895974139,1.39782493,111520.0,111510.0,0.05059]
[1756895974334,2.22250493,111520.0,111510.0,0.05059]
[1756895975041,1.39782493,111520.0,111510.0,0.05059]
[1756895975242,2.22254493,111520.0,111510.0,0.05059]
[1756895976033,2.22254493,111520.0,111510.0,0.02765]
[1756895976543,2.22254493,111520.0,111510.0,0.00448]
[1756895977740,2.22214493,111520.0,111510.0,0.00448]
[1756895984044,2.57214493,111520.0,111510.0,0.00448]
[1756895986444,2.24214493,111520.0,111510.0,0.00448]
[1756895986645,2.53214493,111520.0,111510.0,0.00448]
[1756895987151,1.70742493,111520.0,111510.0,0.00448]
[1756895987341,2.22198493,111520.0,111510.0,0.05274]
[1756895987541,2.22198493,111520.0,111510.0,0.00448]
[1756895987952,2.22198493,111520.0,111510.0,0.0285]
[1756895992054,1.39742493,111520.0,111510.0,0.0285]
[1756895992258,2.22190493,111520.0,111510.0,0.08817]
[1756895992460,2.22190493,111520.0,111510.0,0.00448]
[1756895993257,2.27039276,111520.0,111510.0,0.00448]
[1756895993964,2.63119276,111520.0,111510.0,0.00448]
[1756895994151,2.63119276,111520.0,111510.0,0.0285]
[1756895995260,2.63119276,111520.0,111510.0,0.00448]
[1756895995956,2.96119276,111520.0,111510.0,0.00448]
[1756895996153,0.02647995,111520.0,111510.0,0.67700749]
[1756895996358,0.02647995,111520.0,111510.0,1.70664498]
[1756895997375,0.003,111520.0,111510.0,1.70664498]
[1756895997564,0.003,111520.0,111510.0,1.79631628]
[1756895997762,0.003,111520.0,111510.0,1.70664498]
[1756895999269,0.003,111520.0,111510.0,1.45664498]
[1756896000271,0.003,111520.0,111510.0,1.70664498]
[1756896001171,0.003,111520.0,111510.0,1.79631598]
[1756896002366,0.003,111520.0,111510.0,1.8676137]
[1756896002566,0.003,111520.0,111510.0,1.7779427]
[1756896003466,0.003,111520.0,111510.0,1.55189041]
[1756896006371,0.003,111520.0,111510.0,1.64156161]
[1756896006567,0.003,111520.0,111510.0,2.0931843]
[1756896007576,0.003,111520.0,111510.0,2.0035131]
[1756896007873,0.003,111520.0,111510.0,1.55189041]
[1756896008766,0.003,111520.0,111510.0,1.81569041]
[1756896011977,0.003,111520.0,111510.0,1.90536161]
[1756896012165,0.003,111520.0,111510.0,2.3569843]
[1756896012679,0.003,111520.0,111510.0,2.2673131]
[1756896014985,0.0001,111530.0,111520.0,0.1727031]
[1756896015283,0.04818,111540.0,111530.0,0.08304]
[1756896015475,0.08301,111540.0,111530.0,1.23373197]
[1756896016378,0.08301,111540.0,111530.0,1.23821197]
[1756896016686,0.08301,111540.0,111530.0,1.24699811]
[1756896017086,0.04808,111540.0,111530.0,1.24699811]
[1756896017985,0.04808,111540.0,111530.0,1.60779811]
[1756896018583,0.05208,111540.0,111530.0,1.60779811]
[1756896019478,0.004,111540.0,111530.0,1.60779811]
[1756896025988,0.004,111540.0,111530.0,2.43151811]
[1756896027083,0.004,111540.0,111530.0,2.43147811]
[1756896028795,0.004,111540.0,111530.0,1.60779811]
[1756896029095,0.004,111540.0,111530.0,2.43143811]
[1756896035496,0.004,111540.0,111530.0,1.15617542]
[1756896035698,0.03893,111540.0,111530.0,2.43123811]
[1756896035998,0.004,111540.0,111530.0,2.43123811]
[1756896036394,0.02756234,111540.0,111530.0,2.43123811]
[1756896036590,0.06249234,111540.0,111530.0,1.60779811]
[1756896036790,0.06249234,111540.0,111530.0,2.43123811]
[1756896037600,0.06249234,111540.0,111530.0,1.97961542]
[1756896037791,0.06249234,111540.0,111530.0,2.43123811]
[1756896039997,0.02756234,111540.0,111530.0,2.43123811]
[1756896040592,0.06361234,111540.0,111530.0,1.24699811]
[1756896040796,0.31361234,111540.0,111530.0,1.24699811]
[1756896046402,0.29005,111540.0,111530.0,1.24699811]
[1756896051509,0.254,111540.0,111530.0,1.24699811]
[1756896052813,0.29005,111540.0,111530.0,1.24699811]
[1756896053206,0.33651,111540.0,111530.0,0.78658928]
[1756896053412,0.36009611,111540.0,111530.0,0.46658928]
[1756896055105,0.36009611,111540.0,111530.0,0.91821197]
[1756896055609,0.36009611,111540.0,111530.0,0.92733404]
[1756896055914,0.36009611,111540.0,111530.0,0.91821197]
[1756896056310,0.33651,111540.0,111530.0,0.46658928]
[1756896056818,0.33651,111540.0,111530.0,0.44949]
[1756896058915,1.61117269,111540.0,111530.0,0.05236]
[1756896059114,1.61117269,111540.0,111530.0,0.00448]
[1756896059115,1.99554853,111540.0,111530.0,0.00448]
[1756896059317,2.06554853,111540.0,111530.0,0.00448]
[1756896059620,2.32554853,111540.0,111530.0,0.00448]
[1756896061112,2.32554853,111540.0,111520.0,0.0001]
[1756896061312,0.89493269,111530.0,111520.0,0.0001]
[1756896061612,1.51850853,111530.0,111510.0,0.0001]
[1756896061816,1.71789269,111520.0,111510.0,0.04691]
[1756896062016,1.74146853,111520.0,111510.0,0.04681]
[1756896062618,2.09146853,111520.0,111510.0,0.04681]
[1756896062807,1.99146853,111520.0,111500.0,0.04091]
[1756896063123,0.08251,111510.0,111500.0,0.46772]
[1756896063420,0.08251,111510.0,111500.0,0.93276269]
[1756896063614,0.78179,111510.0,111500.0,0.93276269]
[1756896063923,0.08251,111510.0,111500.0,0.93276269]
[1756896064114,0.04646,111510.0,111500.0,1.29356269]
[1756896065429,0.04646,111510.0,111500.0,1.5196974]
[1756896065722,0.08251,111510.0,111500.0,1.5196974]
[1756896066021,0.001,111510.0,111500.0,1.7333674]
[1756896066211,0.001,111510.0,111500.0,1.7696974]
[1756896069423,0.001,111510.0,111500.0,1.7706974]
[1756896069925,0.0238,111520.0,111510.0,0.08238]
[1756896070129,0.0237,111520.0,111510.0,1.1420587]
[1756896070825,0.0237,111520.0,111510.0,1.4809374]
[1756896071425,0.0237,111520.0,111510.0,1.1420587]
[1756896072626,0.0247,111520.0,111510.0,1.1420587]
[1756896072830,0.001,111520.0,111510.0,1.1420587]
[1756896073523,0.001,111520.0,111510.0,1.4809374]
[1756896074021,0.001,111520.0,111510.0,1.7309374]
[1756896077825,0.001,111520.0,111510.0,1.05318]
[1756896078028,0.001,111520.0,111510.0,1.7309374]
[1756896078928,0.001,111520.0,111510.0,2.5537774]
[1756896079230,0.7855387,111520.0,111510.0,0.13238]
[1756896079521,2.22101791,111520.0,111510.0,0.04673]
[1756896080514,2.22101791,111520.0,111500.0,0.3791087]
[1756896080825,0.4237387,111510.0,111500.0,0.7655087]
[1756896081022,0.44753921,111510.0,111500.0,0.7654087]
[1756896081822,0.44753921,111510.0,111500.0,0.7664087]
[1756896082329,0.44753921,111510.0,111500.0,0.7674087]
[1756896082939,0.51909515,111510.0,111500.0,0.42853]
[1756896083331,1.12989515,111510.0,111500.0,0.42753]
[1756896083529,1.05933921,111510.0,111500.0,0.42753]
[1756896083931,1.05933921,111510.0,111500.0,0.39188]
[1756896084231,1.05833921,111510.0,111500.0,0.39188]
[1756896084430,1.06033921,111510.0,111500.0,0.39188]
[1756896084617,1.06033921,111510.0,111500.0,0.42653]
[1756896085729,1.06033921,111510.0,111500.0,0.39088]
[1756896085938,1.06133921,111510.0,111500.0,0.11746]
[1756896087228,1.07012206,111510.0,111500.0,0.11746]
[1756896087637,1.07012206,111510.0,111500.0,0.14088]
[1756896087936,1.07012206,111510.0,111500.0,0.11746]
[1756896088136,1.13435123,111510.0,111500.0,0.14088]
[1756896089329,1.13435123,111510.0,111500.0,0.17653]
[1756896089731,0.79547253,111510.0,111500.0,0.17653]
[1756896089936,1.95707123,111510.0,111500.0,0.5299587]
[1756896091335,1.13435123,111510.0,111500.0,0.5299587]
[1756896091635,1.59623123,111510.0,111500.0,0.5299587]
[1756896092037,1.59623123,111510.0,111500.0,0.19108]
[1756896092238,1.59623123,111510.0,111500.0,0.5299587]
[1756896092537,1.59623123,111510.0,111500.0,0.5254787]
[1756896093336,0.52355123,111510.0,111500.0,0.5154787]
[1756896093540,1.34623123,111510.0,111500.0,0.5154787]
[1756896093834,1.34623123,111510.0,111500.0,0.1766]
[1756896094039,1.34623123,111510.0,111500.0,0.5154787]
[1756896094532,1.34623123,111510.0,111500.0,0.16205]
[1756896094736,1.34623123,111510.0,111500.0,0.5009287]
[1756896095538,1.00735253,111510.0,111500.0,0.5154787]
[1756896095839,1.34623123,111510.0,111500.0,0.5154787]
[1756896096240,1.00735253,111510.0,111500.0,0.5009287]
[1756896096441,1.34623123,111510.0,111500.0,0.5009287]
[1756896097829,1.34623123,111510.0,111500.0,0.16205]
[1756896098035,1.34623123,111510.0,111500.0,0.5009287]
[1756896101444,1.70703123,111510.0,111500.0,0.5009287]
[1756896103742,0.18467253,111510.0,111500.0,1.1041474]
[1756896103948,0.11166051,111510.0,111500.0,1.3541474]
[1756896104149,0.93418051,111510.0,111500.0,1.3541474]
[1756896105345,0.07443051,111510.0,111500.0,1.7149474]
[1756896105542,0.05063,111510.0,111500.0,1.7149474]
[1756896106244,0.04963,111510.0,111500.0,1.7149474]
[1756896106744,0.0257,111510.0,111500.0,1.7149474]
[1756896107441,0.0257,111510.0,111500.0,1.7159474]
[1756896113152,0.0257,111510.0,111500.0,1.7204274]
[1756896114254,0.002,111510.0,111500.0,1.7204274]
[1756896119155,0.002,111510.0,111500.0,1.4704274]
[1756896122654,0.002,111510.0,111500.0,2.2925874]
[1756896123962,0.002,111510.0,111500.0,2.2915874]
[1756896124164,0.002,111510.0,111500.0,2.2881074]
[1756896125561,0.002,111510.0,111500.0,2.06561512]
[1756896125763,0.03732,111510.0,111500.0,0.79167]
[1756896125966,0.08367,111510.0,111500.0,0.88365512]
[1756896126268,0.10752302,111510.0,111500.0,0.88365512]
[1756896127059,0.80930814,111510.0,111500.0,0.41653]
[1756896127773,1.17011061,111510.0,111500.0,0.21653]
[1756896128771,0.71832549,111510.0,111500.0,0.21653]
[1756896129071,0.71932549,111510.0,111500.0,0.21653]
[1756896133974,0.79235199,111510.0,111500.0,0.21653]
[1756896137178,0.79235199,111510.0,111500.0,0.23132]
[1756896137378,0.79235199,111510.0,111500.0,0.21653]
[1756896139282,0.79135199,111510.0,111500.0,0.21653]
[1756896139581,0.7674965,111510.0,111500.0,0.21653]
[1756896139982,0.7913441,111510.0,111500.0,0.21653]
[1756896140183,0.7913441,111510.0,111500.0,0.42653]
[1756896140381,0.7923441,111510.0,111500.0,0.42653]
[1756896142080,0.7923441,111510.0,111500.0,0.15653]
[1756896144291,1.6141441,111510.0,111500.0,0.15653]
[1756896147893,0.7923441,111510.0,111500.0,0.08653]
[1756896148094,1.6141041,111510.0,111500.0,0.08653]
[1756896148296,1.6141041,111510.0,111500.0,0.10653]
[1756896148492,1.6141041,111510.0,111500.0,0.42653]
[1756896148700,1.6141041,111510.0,111500.0,0.44653]
[1756896150900,1.6141041,111510.0,111500.0,0.89831512]
[1756896151898,1.6131041,111510.0,111500.0,0.89831512]
[1756896154695,0.7913441,111510.0,111500.0,0.41493]
[1756896154902,1.6129841,111510.0,111500.0,0.41493]
[1756896155904,1.6109841,111510.0,111500.0,0.41493]
[1756896156102,1.6119841,111510.0,111500.0,0.41493]
[1756896157806,1.6119441,111510.0,111500.0,0.40493]
[1756896162504,1.6119441,111510.0,111500.0,0.08493]
[1756896162704,1.6119441,111510.0,111500.0,0.45493]
[1756896164412,1.6119441,111510.0,111500.0,0.08493]
[1756896166614,0.7903441,111510.0,111500.0,0.08493]
[1756896166810,1.6118241,111510.0,111500.0,0.08493]
[1756896168618,1.6118241,111510.0,111500.0,0.05088]
[1756896170012,1.6118241,111510.0,111500.0,0.02746]
[1756896172220,1.6118241,111510.0,111500.0,0.05175]
[1756896172717,0.7903441,111510.0,111500.0,0.86970512]
[1756896172913,0.1065176,111510.0,111500.0,1.13445512]
[1756896173218,0.9278776,111510.0,111500.0,1.13445512]
[1756896174315,0.9268776,111510.0,111500.0,1.13445512]
[1756896176323,0.90303,111510.0,111500.0,1.49525512]
[1756896176619,0.90303,111510.0,111500.0,1.49625512]
[1756896176820,0.08167,111510.0,111500.0,1.49625512]
[1756896177024,0.90299,111510.0,111500.0,1.49625512]
[1756896177322,0.90299,111510.0,111500.0,1.49525512]
[1756896177525,0.90299,111510.0,111500.0,1.49625512]
[1756896177713,0.08167,111510.0,111500.0,1.49625512]
[1756896178927,0.03643,111520.0,111500.0,2.37104292]
[1756896179128,0.90466,111520.0,111510.0,0.89585512]
[1756896179427,0.90456,111520.0,111510.0,1.24585512]
[1756896179626,0.08328,111520.0,111510.0,1.24585512]
[1756896180421,0.04695,111520.0,111510.0,1.50033512]
[1756896180821,0.08328,111520.0,111510.0,1.50033512]
[1756896181718,0.08428,111520.0,111510.0,1.50033512]
[1756896185637,0.08428,111520.0,111510.0,1.38735045]
[1756896188739,0.04795,111520.0,111510.0,1.38735045]
[1756896189138,0.08541,111520.0,111510.0,1.38735045]
[1756896190734,0.04795,111520.0,111510.0,1.38735045]
[1756896194546,0.02469,111520.0,111510.0,1.38735045]
[1756896195841,0.02469,111520.0,111510.0,1.7261509]
[1756896196246,0.02469,111520.0,111510.0,1.38735045]
[1756896197645,0.001,111520.0,111510.0,1.38735045]
[1756896197846,0.001,111520.0,111510.0,2.20827045]
[1756896202447,0.001,111520.0,111510.0,1.38735045]
[1756896202646,0.001,111520.0,111510.0,2.20819045]
[1756896204646,0.001,111520.0,111510.0,1.85815045]
[1756896204647,0.03846,111520.0,111510.0,1.85815045]
[1756896204847,0.03846,111520.0,111510.0,2.21815045]
[1756896206556,0.03846,111520.0,111510.0,1.39735045]
[1756896209151,0.0622213,111520.0,111510.0,1.39735045]
[1756896209557,0.03846,111520.0,111510.0,1.39735045]
[1756896210250,0.001,111520.0,111510.0,1.39735045]
[1756896215155,0.03846,111520.0,111510.0,1.03735045]
[1756896215355,0.03846,111520.0,111510.0,2.22795045]
[1756896215655,0.001,111520.0,111510.0,2.22795045]
[1756896216550,0.02476182,111520.0,111510.0,2.22795045]
[1756896217050,0.06222182,111520.0,111510.0,0.69855]
[1756896217257,0.69895227,111520.0,111510.0,0.08775]
[1756896217451,1.03775272,111520.0,111510.0,0.08775]
[1756896217654,0.69895227,111520.0,111510.0,0.08775]
[1756896217852,0.69895227,111520.0,111510.0,0.42655045]
[1756896230671,1.14855272,111520.0,111510.0,0.05158]
[1756896230866,1.14855272,111520.0,111510.0,0.00448]
[1756896231169,1.14851558,111520.0,111510.0,0.05293]
[1756896232769,1.14851558,111520.0,111510.0,0.00448]
[1756896232980,1.14851558,111520.0,111510.0,0.09]
[1756896233273,1.14851558,111520.0,111510.0,0.05293]
[1756896233462,1.39851558,111520.0,111510.0,0.00448]
[1756896233974,1.39851558,111520.0,111510.0,0.05293]
[1756896239382,1.14851558,111520.0,111510.0,0.05293]
[1756896240180,0.47091468,111520.0,111510.0,0.05293]
[1756896240380,1.14851558,111520.0,111510.0,0.05293]
[1756896241081,1.14851558,111520.0,111510.0,0.02836]
[1756896241382,1.14851558,111520.0,111510.0,0.05293]
[1756896242575,1.29111468,111520.0,111510.0,0.09]
[1756896242779,1.96871558,111520.0,111510.0,0.09]
[1756896242978,1.96871558,111520.0,111510.0,0.05293]
[1756896247486,1.74301852,111520.0,111510.0,0.05293]
[1756896247993,0.47091468,111520.0,111510.0,0.09]
[1756896248180,1.74293852,111520.0,111510.0,0.09]
[1756896248383,0.92281852,111520.0,111510.0,0.09]
[1756896248884,1.74289852,111520.0,111510.0,0.09]
[1756896250286,1.74289852,111520.0,111510.0,0.05293]
[1756896256795,0.47091468,111520.0,111510.0,0.08687]
[1756896256990,1.74277852,111520.0,111510.0,0.08687]
[1756896257190,1.74277852,111520.0,111510.0,0.05293]
[1756896259198,1.74277852,111520.0,111510.0,0.02836]
[1756896260996,0.56201852,111520.0,111510.0,0.02836]
[1756896261203,0.92999468,111520.0,111510.0,0.08726]
[1756896261497,0.11011468,111520.0,111510.0,0.46806]
[1756896261692,0.92999468,111520.0,111510.0,1.45996384]
[1756896263392,0.92999468,111520.0,111510.0,1.09916384]
[1756896263686,0.92999468,111520.0,111510.0,1.45996384]
[1756896268799,0.92999468,111520.0,111510.0,1.09916384]
[1756896269004,0.92999468,111520.0,111510.0,1.45996384]
[1756896279905,0.92999468,111520.0,111510.0,1.00806]
[1756896280107,0.92999468,111520.0,111510.0,1.45996384]
[1756896281394,0.90627,111520.0,111510.0,0.33726]
[1756896281600,0.92996068,111520.0,111510.0,0.33726]
[1756896285807,0.92996068,111520.0,111510.0,0.05332]
[1756896286111,1.74266452,111520.0,111510.0,0.05332]
[1756896288411,1.38186452,111520.0,111510.0,0.05332]
[1756896288711,1.29076068,111520.0,111510.0,0.05332]
[1756896289406,1.29076068,111520.0,111510.0,0.00448]
[1756896289910,0.92996068,111520.0,111510.0,0.02777]
[1756896290907,0.92996068,111520.0,111510.0,0.0506]
[1756896291213,1.38186452,111520.0,111510.0,0.0506]
[1756896292207,0.92996068,111520.0,111510.0,0.0506]
[1756896294312,1.38186452,111520.0,111510.0,0.0506]
[1756896297313,0.11008068,111520.0,111510.0,0.08531]
[1756896297518,0.92932068,111520.0,111510.0,0.88721384]
[1756896297916,0.92932068,111520.0,111510.0,0.43531]
[1756896298218,0.92932068,111520.0,111510.0,0.88721384]
[1756896298715,0.92932068,111520.0,111510.0,0.43531]
[1756896299215,0.11008068,111520.0,111510.0,0.43531]
[1756896299412,0.92928068,111520.0,111510.0,0.43531]
[1756896300019,0.92928068,111520.0,111510.0,0.88721384]
[1756896300420,0.92928068,111520.0,111510.0,0.43531]
[1756896300612,0.92928068,111520.0,111510.0,0.88721384]
[1756896301221,0.92928068,111520.0,111510.0,0.43531]
[1756896302022,0.11008068,111520.0,111510.0,0.43531]
[1756896302316,0.92924068,111520.0,111510.0,0.08531]
[1756896302720,0.92924068,111520.0,111510.0,0.10531]
[1756896303021,0.92924068,111520.0,111510.0,0.39531]
[1756896303221,0.92924068,111520.0,111510.0,0.10531]
[1756896303418,0.92924068,111520.0,111510.0,0.55721384]
[1756896304622,0.92924068,111520.0,111510.0,0.91721384]
[1756896305124,0.92924068,111520.0,111510.0,0.55721384]
[1756896305617,0.92924068,111520.0,111510.0,0.0706]
[1756896305818,0.92924068,111520.0,111510.0,0.10531]
[1756896306417,0.92924068,111520.0,111510.0,0.88721384]
[1756896306726,0.92924068,111520.0,111510.0,0.10531]
[1756896306927,0.92924068,111520.0,111510.0,0.87721384]
[1756896309429,1.26809655,111520.0,111510.0,0.76416587]
[1756896310129,1.26809655,111520.0,111510.0,0.79416587]
[1756896314834,1.26809655,111520.0,111510.0,0.0506]